[Event "Late-Titled-Tuesday-Blitz-June-04-2024"]
[Site "Chess.com"]
[Date "2024.06.04"]
[Round "6"]
[White "jefferyx"]
[Black "JSPrepz"]
[Result "1-0"]
[WhiteElo "3083"]
[BlackElo "2839"]
[TimeControl "180+1"]
[EndTime "15:04:37 PDT"]
[Termination "jefferyx won by checkmate"]

1. b4 {[%clk 0:03:00.9]} 1... e5 {[%clk 0:02:58.4]} 2. a3 {[%clk 0:02:59.7]}
2... a5 {[%clk 0:02:54.3]} 3. b5 {[%clk 0:02:59.9]} 3... d5 {[%clk 0:02:52.6]}
4. Bb2 {[%clk 0:03:00.3]} 4... Bd6 {[%clk 0:02:52.8]} 5. e3 {[%clk 0:02:59.8]}
5... Nf6 {[%clk 0:02:52.3]} 6. Nf3 {[%clk 0:02:57.4]} 6... Qe7 {[%clk
0:02:52.7]} 7. d4 {[%clk 0:02:57.2]} 7... e4 {[%clk 0:02:50.6]} 8. Nfd2 {[%clk
0:02:55]} 8... c6 {[%clk 0:02:46.5]} 9. c4 {[%clk 0:02:55.1]} 9... Nbd7 {[%clk
0:02:45.6]} 10. Nc3 {[%clk 0:02:53.8]} 10... O-O {[%clk 0:02:44.7]} 11. g4
{[%clk 0:02:51.5]} 11... dxc4 {[%clk 0:02:15.1]} 12. Bxc4 {[%clk 0:02:52.4]}
12... Nb6 {[%clk 0:02:12.7]} 13. Be2 {[%clk 0:02:52.7]} 13... Bc7 {[%clk
0:01:37.6]} 14. bxc6 {[%clk 0:02:46]} 14... bxc6 {[%clk 0:01:35.6]} 15. g5
{[%clk 0:02:46.6]} 15... Nfd5 {[%clk 0:01:34.9]} 16. Ncxe4 {[%clk 0:02:47.2]}
16... Bf5 {[%clk 0:01:24.9]} 17. Bd3 {[%clk 0:02:43]} 17... Rab8 {[%clk
0:01:19.5]} 18. Rc1 {[%clk 0:02:41.3]} 18... Na4 {[%clk 0:01:06.6]} 19. Qxa4
{[%clk 0:02:36.8]} 19... Rxb2 {[%clk 0:01:06.8]} 20. Qxc6 {[%clk 0:02:29.3]}
20... Bxe4 {[%clk 0:00:56]} 21. Nxe4 {[%clk 0:02:20.4]} 21... Qxa3 {[%clk
0:00:55.8]} 22. O-O {[%clk 0:02:17.2]} 22... Nxe3 {[%clk 0:00:40.8]} 23. Rc3
{[%clk 0:02:03.4]} 23... Bxh2+ {[%clk 0:00:34.7]} 24. Kh1 {[%clk 0:01:51]} 24...
Qa2 {[%clk 0:00:14.8]} 25. fxe3 {[%clk 0:01:50.8]} 25... Bb8 {[%clk 0:00:12.2]}
26. Rc2 {[%clk 0:01:49.9]} 26... Qa3 {[%clk 0:00:11.9]} 27. Nf6+ {[%clk
0:01:30.9]} 27... Kh8 {[%clk 0:00:12.4]} 28. Qe4 {[%clk 0:01:19.4]} 28... g6
{[%clk 0:00:13]} 29. Qh4 {[%clk 0:01:13.6]} 29... h5 {[%clk 0:00:13.4]} 30. Nxh5
{[%clk 0:01:13.9]} 30... Rd8 {[%clk 0:00:03.4]} 31. Nf6+ {[%clk 0:01:06.7]}
31... Kg7 {[%clk 0:00:03.4]} 32. Qh6# {[%clk 0:01:07.4]} 1-0

[Event "Late-Titled-Tuesday-Blitz-June-04-2024"]
[Site "Chess.com"]
[Date "2024.06.04"]
[Round "6"]
[White "rasmussvane"]
[Black "Statham_01"]
[Result "1-0"]
[WhiteElo "2925"]
[BlackElo "2716"]
[TimeControl "180+1"]
[EndTime "15:04:39 PDT"]
[Termination "rasmussvane won by resignation"]

1. Nf3 {[%clk 0:02:59]} 1... d5 {[%clk 0:02:59.6]} 2. g3 {[%clk 0:02:57.6]} 2...
Nc6 {[%clk 0:02:59.9]} 3. d4 {[%clk 0:02:57.1]} 3... Bf5 {[%clk 0:03:00.4]} 4.
Bg2 {[%clk 0:02:53.8]} 4... Nb4 {[%clk 0:03:00.8]} 5. Na3 {[%clk 0:02:50.1]}
5... e6 {[%clk 0:03:01.2]} 6. O-O {[%clk 0:02:46.7]} 6... h6 {[%clk 0:03:00.9]}
7. c3 {[%clk 0:02:44.8]} 7... Nc6 {[%clk 0:03:01]} 8. Qa4 {[%clk 0:02:35.8]}
8... Bd6 {[%clk 0:02:52.3]} 9. c4 {[%clk 0:02:30]} 9... Nf6 {[%clk 0:02:44]} 10.
c5 {[%clk 0:02:12.8]} 10... Be7 {[%clk 0:02:44.1]} 11. Ne5 {[%clk 0:02:12.4]}
11... Be4 {[%clk 0:01:55.7]} 12. Bf4 {[%clk 0:02:03.4]} 12... Nh5 {[%clk
0:01:43.3]} 13. Nxc6 {[%clk 0:01:47.9]} 13... Qd7 {[%clk 0:01:40.5]} 14. Nb5
{[%clk 0:01:06]} 14... Nxf4 {[%clk 0:01:34.8]} 15. Ne5 {[%clk 0:00:57.9]} 15...
Nxe2+ {[%clk 0:00:53.2]} 16. Kh1 {[%clk 0:00:57.7]} 16... Bxg2+ {[%clk
0:00:27.7]} 17. Kxg2 {[%clk 0:00:57.5]} 17... Qd8 {[%clk 0:00:28.6]} 18. Nd6+
{[%clk 0:00:44.4]} 18... Kf8 {[%clk 0:00:28.8]} 19. Ndxf7 {[%clk 0:00:42.3]}
19... Qc8 {[%clk 0:00:25.5]} 20. Nxh8 {[%clk 0:00:40.4]} 20... Kg8 {[%clk
0:00:25.8]} 21. Nhg6 {[%clk 0:00:40.3]} 21... Bf6 {[%clk 0:00:26.2]} 22. Rae1
{[%clk 0:00:39.1]} 22... b5 {[%clk 0:00:24.1]} 23. Qd1 {[%clk 0:00:32.4]} 1-0

[Event "Late-Titled-Tuesday-Blitz-June-04-2024"]
[Site "Chess.com"]
[Date "2024.06.04"]
[Round "6"]
[White "azzbrn"]
[Black "Arimin1329"]
[Result "1-0"]
[WhiteElo "2511"]
[BlackElo "2358"]
[TimeControl "180+1"]
[EndTime "15:04:40 PDT"]
[Termination "azzbrn won by resignation"]

1. e4 {[%clk 0:03:00.9]} 1... c6 {[%clk 0:02:59.6]} 2. d4 {[%clk 0:03:00.1]}
2... d5 {[%clk 0:03:00.5]} 3. e5 {[%clk 0:02:57.7]} 3... Bf5 {[%clk 0:02:57.5]}
4. Nd2 {[%clk 0:02:57.8]} 4... h6 {[%clk 0:02:57]} 5. Nb3 {[%clk 0:02:56]} 5...
e6 {[%clk 0:02:57]} 6. Nf3 {[%clk 0:02:55.2]} 6... Nd7 {[%clk 0:02:57.3]} 7. Be2
{[%clk 0:02:55]} 7... c5 {[%clk 0:02:56.9]} 8. Nxc5 {[%clk 0:02:48]} 8... Bxc5
{[%clk 0:02:53.7]} 9. dxc5 {[%clk 0:02:48.9]} 9... Nxc5 {[%clk 0:02:52.1]} 10.
Be3 {[%clk 0:02:35.9]} 10... Nd7 {[%clk 0:02:51.8]} 11. O-O {[%clk 0:02:32.2]}
11... Ne7 {[%clk 0:02:52]} 12. c4 {[%clk 0:02:24.6]} 12... O-O {[%clk
0:02:48.1]} 13. Rc1 {[%clk 0:02:06.1]} 13... Rc8 {[%clk 0:02:45.6]} 14. Qb3
{[%clk 0:01:43.7]} 14... b6 {[%clk 0:02:39.8]} 15. Rfd1 {[%clk 0:01:41.2]} 15...
Nc5 {[%clk 0:02:37.7]} 16. Qa3 {[%clk 0:01:39]} 16... Qd7 {[%clk 0:02:30.1]} 17.
Nd4 {[%clk 0:01:21.4]} 17... Bg6 {[%clk 0:02:24.4]} 18. Nb5 {[%clk 0:01:18]}
18... Nf5 {[%clk 0:02:03.6]} 19. Bf4 {[%clk 0:00:53.8]} 19... d4 {[%clk
0:01:52.3]} 20. g4 {[%clk 0:00:48.5]} 20... Nh4 {[%clk 0:01:50.5]} 21. Bg3
{[%clk 0:00:42.6]} 21... Qe7 {[%clk 0:01:26]} 22. Qxa7 {[%clk 0:00:42.7]} 22...
Nd7 {[%clk 0:01:18.3]} 23. Rxd4 {[%clk 0:00:36.1]} 23... Rfd8 {[%clk 0:01:16.4]}
24. Rcd1 {[%clk 0:00:34.7]} 24... Ra8 {[%clk 0:01:14.3]} 25. Qb7 {[%clk
0:00:23.2]} 25... Rab8 {[%clk 0:01:12.4]} 26. Qc7 {[%clk 0:00:20.4]} 26... Rbc8
{[%clk 0:01:06.5]} 27. Qd6 {[%clk 0:00:20.7]} 27... Qg5 {[%clk 0:00:55.3]} 28.
f4 {[%clk 0:00:20.5]} 1-0

[Event "Late-Titled-Tuesday-Blitz-June-04-2024"]
[Site "Chess.com"]
[Date "2024.06.04"]
[Round "6"]
[White "Love7Unicorn"]
[Black "Evan_Attaker"]
[Result "0-1"]
[WhiteElo "2552"]
[BlackElo "2701"]
[TimeControl "180+1"]
[EndTime "15:04:44 PDT"]
[Termination "Evan_Attaker won by checkmate"]

1. d4 {[%clk 0:02:59.6]} 1... c5 {[%clk 0:02:58.7]} 2. d5 {[%clk 0:02:59.6]}
2... g6 {[%clk 0:02:57.8]} 3. c4 {[%clk 0:02:59.9]} 3... Bg7 {[%clk 0:02:58.1]}
4. e4 {[%clk 0:03:00.5]} 4... d6 {[%clk 0:02:57.8]} 5. f4 {[%clk 0:03:00.8]}
5... Nf6 {[%clk 0:02:58.1]} 6. Nc3 {[%clk 0:03:01.2]} 6... O-O {[%clk
0:02:57.7]} 7. Be2 {[%clk 0:03:01.6]} 7... e6 {[%clk 0:02:55.8]} 8. Nf3 {[%clk
0:03:01.8]} 8... exd5 {[%clk 0:02:54.8]} 9. cxd5 {[%clk 0:03:02.7]} 9... Nbd7
{[%clk 0:02:49.4]} 10. e5 {[%clk 0:02:51.1]} 10... dxe5 {[%clk 0:02:47]} 11.
fxe5 {[%clk 0:02:52]} 11... Ng4 {[%clk 0:02:45.8]} 12. e6 {[%clk 0:02:44]} 12...
Nde5 {[%clk 0:02:39.2]} 13. Ne4 {[%clk 0:02:37.4]} 13... fxe6 {[%clk 0:02:33.5]}
14. d6 {[%clk 0:02:37.6]} 14... Bd7 {[%clk 0:02:25.5]} 15. O-O {[%clk
0:02:25.9]} 15... Bc6 {[%clk 0:02:23.4]} 16. Bg5 {[%clk 0:02:22.4]} 16... Qb6
{[%clk 0:02:20.1]} 17. Nxe5 {[%clk 0:02:21.1]} 17... Nxe5 {[%clk 0:02:03.8]} 18.
Nf6+ {[%clk 0:01:57.5]} 18... Kh8 {[%clk 0:02:02.1]} 19. Qe1 {[%clk 0:01:57.2]}
19... Qxb2 {[%clk 0:01:57]} 20. Rd1 {[%clk 0:01:38.2]} 20... Nd7 {[%clk
0:01:49.7]} 21. Nxd7 {[%clk 0:01:05.4]} 21... Bxd7 {[%clk 0:01:50.6]} 22. Be7
{[%clk 0:01:01.3]} 22... Rxf1+ {[%clk 0:01:46.5]} 23. Bxf1 {[%clk 0:01:02.2]}
23... Qxa2 {[%clk 0:01:39.3]} 24. Qe4 {[%clk 0:00:59.3]} 24... Bc6 {[%clk
0:01:36.4]} 25. Qh4 {[%clk 0:00:54.7]} 25... Qc2 {[%clk 0:01:19.2]} 26. Rd3
{[%clk 0:00:39.7]} 26... c4 {[%clk 0:01:12.2]} 27. Rh3 {[%clk 0:00:35.1]} 27...
h5 {[%clk 0:01:03]} 28. Bxc4 {[%clk 0:00:06]} 28... Qxg2# {[%clk 0:01:02.2]} 0-1

[Event "Late-Titled-Tuesday-Blitz-June-04-2024"]
[Site "Chess.com"]
[Date "2024.06.04"]
[Round "6"]
[White "bascheyaro"]
[Black "lachesisQ"]
[Result "0-1"]
[WhiteElo "2800"]
[BlackElo "3042"]
[TimeControl "180+1"]
[EndTime "15:04:51 PDT"]
[Termination "lachesisQ won by resignation"]

1. d4 {[%clk 0:03:00.9]} 1... Nf6 {[%clk 0:02:59.6]} 2. Nf3 {[%clk 0:03:00.9]}
2... g6 {[%clk 0:02:59.7]} 3. c4 {[%clk 0:03:01.2]} 3... Bg7 {[%clk 0:02:59.9]}
4. Nc3 {[%clk 0:03:01.7]} 4... d5 {[%clk 0:03:00.3]} 5. Bg5 {[%clk 0:02:50.1]}
5... dxc4 {[%clk 0:03:00.2]} 6. Bxf6 {[%clk 0:02:50.1]} 6... Bxf6 {[%clk
0:02:58]} 7. e3 {[%clk 0:02:50.6]} 7... Be6 {[%clk 0:02:51.8]} 8. Nd2 {[%clk
0:02:44]} 8... c5 {[%clk 0:02:51.5]} 9. dxc5 {[%clk 0:02:36.9]} 9... Bxc3 {[%clk
0:02:44.9]} 10. bxc3 {[%clk 0:02:36.8]} 10... Qa5 {[%clk 0:02:45.1]} 11. Bxc4
{[%clk 0:02:26.1]} 11... Bxc4 {[%clk 0:02:42]} 12. Nxc4 {[%clk 0:02:27]} 12...
Qxc3+ {[%clk 0:02:42.3]} 13. Nd2 {[%clk 0:02:27.3]} 13... O-O {[%clk 0:02:14]}
14. Rc1 {[%clk 0:02:27.3]} 14... Qa5 {[%clk 0:02:13.7]} 15. Rc2 {[%clk
0:02:00.9]} 15... Na6 {[%clk 0:02:07.2]} 16. O-O {[%clk 0:01:55.7]} 16... Nxc5
{[%clk 0:02:06.2]} 17. Nc4 {[%clk 0:01:46.6]} 17... Qa6 {[%clk 0:01:55.7]} 18.
Qf3 {[%clk 0:01:40.4]} 18... Rac8 {[%clk 0:01:54.1]} 19. Ne5 {[%clk 0:01:37.4]}
19... Qe6 {[%clk 0:01:53.3]} 20. Nc4 {[%clk 0:00:59]} 20... Rfd8 {[%clk
0:01:51.5]} 21. Na5 {[%clk 0:00:50.4]} 21... b6 {[%clk 0:01:49.3]} 22. Nb3
{[%clk 0:00:49.5]} 22... Nxb3 {[%clk 0:01:40.2]} 23. Rxc8 {[%clk 0:00:48.4]}
23... Rxc8 {[%clk 0:01:36.1]} 24. axb3 {[%clk 0:00:48.8]} 24... a5 {[%clk
0:01:36.5]} 25. Qb7 {[%clk 0:00:47.1]} 25... Rc3 {[%clk 0:01:32.5]} 26. h4
{[%clk 0:00:24.3]} 26... Rxb3 {[%clk 0:01:31]} 27. h5 {[%clk 0:00:25]} 27... Kg7
{[%clk 0:01:26.8]} 28. Qc7 {[%clk 0:00:20.6]} 28... Rb5 {[%clk 0:01:22]} 29.
hxg6 {[%clk 0:00:15.2]} 29... hxg6 {[%clk 0:01:22.9]} 30. Rd1 {[%clk 0:00:15.4]}
30... Rc5 {[%clk 0:01:19.9]} 31. Qb8 {[%clk 0:00:15.1]} 31... Qc6 {[%clk
0:01:10]} 32. Qf4 {[%clk 0:00:03.1]} 32... Rc1 {[%clk 0:01:07]} 33. Qd4+ {[%clk
0:00:03.7]} 33... f6 {[%clk 0:01:06.6]} 34. Rxc1 {[%clk 0:00:03.6]} 34... Qxc1+
{[%clk 0:01:07.5]} 35. Kh2 {[%clk 0:00:04.3]} 35... Qc5 {[%clk 0:01:07.5]} 36.
Qe4 {[%clk 0:00:03]} 36... Qe5+ {[%clk 0:01:07]} 37. Qxe5 {[%clk 0:00:03.9]}
37... fxe5 {[%clk 0:01:07.9]} 0-1

[Event "Late-Titled-Tuesday-Blitz-June-04-2024"]
[Site "Chess.com"]
[Date "2024.06.04"]
[Round "6"]
[White "Msb2"]
[Black "grzechu96"]
[Result "1-0"]
[WhiteElo "3037"]
[BlackElo "2798"]
[TimeControl "180+1"]
[EndTime "15:04:54 PDT"]
[Termination "Msb2 won on time"]

1. d4 {[%clk 0:03:00.9]} 1... d5 {[%clk 0:03:00.2]} 2. c4 {[%clk 0:03:01.4]}
2... c6 {[%clk 0:03:00.7]} 3. Nf3 {[%clk 0:03:01.6]} 3... Nf6 {[%clk 0:03:00.7]}
4. Nc3 {[%clk 0:03:02.5]} 4... e6 {[%clk 0:03:00.8]} 5. Qc2 {[%clk 0:03:02.8]}
5... dxc4 {[%clk 0:03:00]} 6. e4 {[%clk 0:03:03.2]} 6... b5 {[%clk 0:03:00.3]}
7. Be2 {[%clk 0:03:03.8]} 7... Bb7 {[%clk 0:03:00.5]} 8. O-O {[%clk 0:03:04.4]}
8... Qc8 {[%clk 0:03:00.9]} 9. Bg5 {[%clk 0:02:58.6]} 9... Nbd7 {[%clk
0:03:00.5]} 10. Rad1 {[%clk 0:02:45.8]} 10... h6 {[%clk 0:02:47.6]} 11. Bf4
{[%clk 0:02:43.8]} 11... Be7 {[%clk 0:02:45.6]} 12. b3 {[%clk 0:02:30.7]} 12...
b4 {[%clk 0:02:43.6]} 13. e5 {[%clk 0:02:30]} 13... Nd5 {[%clk 0:01:13.6]} 14.
Nxd5 {[%clk 0:02:28.9]} 14... cxd5 {[%clk 0:01:14.5]} 15. bxc4 {[%clk
0:02:26.6]} 15... dxc4 {[%clk 0:01:14.3]} 16. Bxc4 {[%clk 0:02:27.5]} 16... Ba6
{[%clk 0:00:47.4]} 17. Nd2 {[%clk 0:02:12.1]} 17... Nb6 {[%clk 0:00:47.8]} 18.
Rc1 {[%clk 0:02:08.4]} 18... O-O {[%clk 0:00:30.2]} 19. Qb3 {[%clk 0:01:52]}
19... Nxc4 {[%clk 0:00:28.6]} 20. Nxc4 {[%clk 0:01:52.9]} 20... Qd7 {[%clk
0:00:28.2]} 21. Rfd1 {[%clk 0:01:47.7]} 21... Rac8 {[%clk 0:00:23.7]} 22. Nd6
{[%clk 0:01:47.9]} 22... Bxd6 {[%clk 0:00:13.3]} 23. exd6 {[%clk 0:01:48.4]}
23... Qb5 {[%clk 0:00:09.5]} 24. h3 {[%clk 0:01:45.3]} 24... Bb7 {[%clk
0:00:09.7]} 25. Qg3 {[%clk 0:01:43.5]} 25... f6 {[%clk 0:00:05.9]} 26. Bxh6
{[%clk 0:01:43.2]} 26... Rf7 {[%clk 0:00:05.4]} 27. Rxc8+ {[%clk 0:01:42]} 27...
Bxc8 {[%clk 0:00:05.5]} 28. Rc1 {[%clk 0:01:42.9]} 28... Bb7 {[%clk 0:00:05.3]}
29. Rc7 {[%clk 0:01:42.2]} 29... Rxc7 {[%clk 0:00:04.9]} 30. dxc7 {[%clk
0:01:43.1]} 30... Qd7 {[%clk 0:00:05.7]} 31. Bf4 {[%clk 0:01:42.8]} 31... Kf7
{[%clk 0:00:05.6]} 32. Bd6 {[%clk 0:01:41.8]} 32... a5 {[%clk 0:00:05.6]} 33. h4
{[%clk 0:01:42.1]} 33... Qc6 {[%clk 0:00:05.1]} 34. h5 {[%clk 0:01:41.3]} 34...
Qc4 {[%clk 0:00:04.6]} 35. Qg6+ {[%clk 0:01:40.5]} 35... Kg8 {[%clk 0:00:04.3]}
36. Bf4 {[%clk 0:01:06.9]} 1-0

[Event "Late-Titled-Tuesday-Blitz-June-04-2024"]
[Site "Chess.com"]
[Date "2024.06.04"]
[Round "6"]
[White "MaestroCheck"]
[Black "Aygehovit1992"]
[Result "0-1"]
[WhiteElo "2625"]
[BlackElo "2806"]
[TimeControl "180+1"]
[EndTime "15:05:01 PDT"]
[Termination "Aygehovit1992 won by resignation"]

1. e4 {[%clk 0:03:00.9]} 1... c5 {[%clk 0:02:59]} 2. Nc3 {[%clk 0:03:00]} 2...
Nc6 {[%clk 0:02:59]} 3. Bb5 {[%clk 0:02:59.9]} 3... Nd4 {[%clk 0:02:59.1]} 4.
Nf3 {[%clk 0:03:00.4]} 4... a6 {[%clk 0:02:59]} 5. Bd3 {[%clk 0:03:00.5]} 5...
e6 {[%clk 0:02:59.1]} 6. O-O {[%clk 0:03:00.5]} 6... Nc6 {[%clk 0:02:58.8]} 7.
a3 {[%clk 0:02:58.8]} 7... Qc7 {[%clk 0:02:54.1]} 8. b4 {[%clk 0:02:37]} 8...
cxb4 {[%clk 0:02:44.6]} 9. axb4 {[%clk 0:02:37.9]} 9... Bxb4 {[%clk 0:02:44.3]}
10. Bb2 {[%clk 0:02:36.2]} 10... Nf6 {[%clk 0:02:43.9]} 11. Nb5 {[%clk
0:02:21.8]} 11... Qb8 {[%clk 0:02:34]} 12. e5 {[%clk 0:02:12.8]} 12... Nd5
{[%clk 0:02:09.5]} 13. Nd6+ {[%clk 0:02:11]} 13... Bxd6 {[%clk 0:02:08.9]} 14.
exd6 {[%clk 0:02:11.3]} 14... Qxd6 {[%clk 0:01:57.5]} 15. Bxg7 {[%clk
0:02:08.6]} 15... Rg8 {[%clk 0:01:57.8]} 16. Bh6 {[%clk 0:02:09.2]} 16... Nf4
{[%clk 0:01:51.2]} 17. Bxf4 {[%clk 0:02:06.6]} 17... Qxf4 {[%clk 0:01:52.1]} 18.
Re1 {[%clk 0:01:48.4]} 18... b6 {[%clk 0:01:22.1]} 19. Be4 {[%clk 0:01:31]}
19... Bb7 {[%clk 0:01:21.1]} 20. d4 {[%clk 0:01:31.3]} 20... Na5 {[%clk
0:01:10.9]} 21. d5 {[%clk 0:01:21]} 21... Rd8 {[%clk 0:00:48.7]} 22. Qd4 {[%clk
0:01:05.1]} 22... f5 {[%clk 0:00:33.5]} 23. Bd3 {[%clk 0:00:32.2]} 23... Qxf3
{[%clk 0:00:27.4]} 24. Bf1 {[%clk 0:00:26.5]} 24... Bxd5 {[%clk 0:00:21.6]} 25.
Qxd5 {[%clk 0:00:14.3]} 25... Qxd5 {[%clk 0:00:20.6]} 0-1

[Event "Late-Titled-Tuesday-Blitz-June-04-2024"]
[Site "Chess.com"]
[Date "2024.06.04"]
[Round "6"]
[White "A4RookA3"]
[Black "FMOlexandrProhorov"]
[Result "0-1"]
[WhiteElo "2501"]
[BlackElo "2380"]
[TimeControl "180+1"]
[EndTime "15:05:02 PDT"]
[Termination "FMOlexandrProhorov won by resignation"]

1. Nc3 {[%clk 0:03:00.9]} 1... g6 {[%clk 0:02:58]} 2. d4 {[%clk 0:02:59.6]} 2...
Bg7 {[%clk 0:02:58.9]} 3. e4 {[%clk 0:02:59.2]} 3... c6 {[%clk 0:02:57.6]} 4.
Bc4 {[%clk 0:02:58.6]} 4... d5 {[%clk 0:02:55.1]} 5. exd5 {[%clk 0:02:59.5]}
5... b5 {[%clk 0:02:55.2]} 6. Be2 {[%clk 0:02:57.1]} 6... b4 {[%clk 0:02:54.9]}
7. Na4 {[%clk 0:02:57.6]} 7... cxd5 {[%clk 0:02:55.1]} 8. a3 {[%clk 0:02:57.5]}
8... bxa3 {[%clk 0:02:51.3]} 9. Rxa3 {[%clk 0:02:58.4]} 9... Nf6 {[%clk
0:02:51.6]} 10. Nf3 {[%clk 0:02:58.5]} 10... O-O {[%clk 0:02:51.8]} 11. O-O
{[%clk 0:02:59.1]} 11... Nc6 {[%clk 0:02:47.6]} 12. c3 {[%clk 0:02:59]} 12...
Bg4 {[%clk 0:02:36.8]} 13. h3 {[%clk 0:02:47.3]} 13... Bxf3 {[%clk 0:02:31.5]}
14. Bxf3 {[%clk 0:02:48.2]} 14... e5 {[%clk 0:02:27.9]} 15. dxe5 {[%clk
0:02:47]} 15... Nxe5 {[%clk 0:02:27.2]} 16. Bf4 {[%clk 0:02:47.7]} 16... Nxf3+
{[%clk 0:02:22.1]} 17. Qxf3 {[%clk 0:02:48.6]} 17... Ne4 {[%clk 0:02:16.5]} 18.
Rd1 {[%clk 0:02:41.9]} 18... Rc8 {[%clk 0:02:16.3]} 19. Rd3 {[%clk 0:02:21.1]}
19... Re8 {[%clk 0:02:11.4]} 20. Qd1 {[%clk 0:02:17.1]} 20... Qh4 {[%clk
0:01:58.7]} 21. Be3 {[%clk 0:02:12.8]} 21... d4 {[%clk 0:01:50.7]} 22. cxd4
{[%clk 0:02:07.4]} 22... f5 {[%clk 0:01:49.1]} 23. Qf3 {[%clk 0:01:39.2]} 23...
Rc2 {[%clk 0:01:41.1]} 24. d5 {[%clk 0:01:08.3]} 24... Nxf2 {[%clk 0:01:29.9]}
25. Bxf2 {[%clk 0:00:47.3]} 25... Rxf2 {[%clk 0:01:25.2]} 26. Qg3 {[%clk
0:00:19.8]} 26... Qxg3 {[%clk 0:01:08.1]} 27. Rxg3 {[%clk 0:00:20.7]} 27... Bd4
{[%clk 0:01:05]} 28. Rgd3 {[%clk 0:00:19.3]} 28... Re1+ {[%clk 0:00:41.8]} 29.
Kh2 {[%clk 0:00:19.5]} 29... Be5+ {[%clk 0:00:39.5]} 30. Rg3 {[%clk 0:00:19.4]}
30... Rff1 {[%clk 0:00:31]} 0-1

[Event "Late-Titled-Tuesday-Blitz-June-04-2024"]
[Site "Chess.com"]
[Date "2024.06.04"]
[Round "6"]
[White "ChessQueen"]
[Black "VladimirBugayev"]
[Result "1-0"]
[WhiteElo "2732"]
[BlackElo "2335"]
[TimeControl "180+1"]
[EndTime "15:05:05 PDT"]
[Termination "ChessQueen won on time"]

1. e4 {[%clk 0:03:00.9]} 1... c6 {[%clk 0:03:00.1]} 2. Nc3 {[%clk 0:02:59]} 2...
d5 {[%clk 0:03:00.6]} 3. Nf3 {[%clk 0:02:59.7]} 3... dxe4 {[%clk 0:03:00.6]} 4.
Nxe4 {[%clk 0:03:00.6]} 4... Nf6 {[%clk 0:03:00.7]} 5. Qe2 {[%clk 0:03:00.6]}
5... Nxe4 {[%clk 0:03:00.5]} 6. Qxe4 {[%clk 0:03:00.9]} 6... Be6 {[%clk
0:03:00.7]} 7. c4 {[%clk 0:02:55.7]} 7... g6 {[%clk 0:02:51.9]} 8. Nd4 {[%clk
0:02:50.8]} 8... Bd7 {[%clk 0:02:42.9]} 9. h4 {[%clk 0:02:41.8]} 9... h5 {[%clk
0:02:36.6]} 10. Qe5 {[%clk 0:02:36.3]} 10... Rg8 {[%clk 0:02:32.9]} 11. Qf4
{[%clk 0:02:09.3]} 11... Bg7 {[%clk 0:02:25.5]} 12. Nf3 {[%clk 0:02:08.2]} 12...
Bg4 {[%clk 0:02:10.9]} 13. Be2 {[%clk 0:01:59.1]} 13... c5 {[%clk 0:02:00.2]}
14. Ng5 {[%clk 0:01:50.8]} 14... Bf5 {[%clk 0:01:55.4]} 15. Qe3 {[%clk
0:01:34.5]} 15... Bd4 {[%clk 0:01:39.7]} 16. Qb3 {[%clk 0:01:34.3]} 16... Qc7
{[%clk 0:01:23]} 17. d3 {[%clk 0:01:28.6]} 17... Nc6 {[%clk 0:01:20.9]} 18. Bd2
{[%clk 0:01:22.7]} 18... e5 {[%clk 0:00:59.2]} 19. Bf3 {[%clk 0:01:20]} 19...
O-O-O {[%clk 0:00:58.2]} 20. Bd5 {[%clk 0:01:18.2]} 20... Rgf8 {[%clk
0:00:55.4]} 21. O-O {[%clk 0:01:05.2]} 21... b6 {[%clk 0:00:38.2]} 22. Qa4
{[%clk 0:01:04.2]} 22... Kb7 {[%clk 0:00:25.6]} 23. b4 {[%clk 0:00:58.7]} 23...
Rxd5 {[%clk 0:00:15.5]} 24. cxd5 {[%clk 0:00:57.6]} 24... Ne7 {[%clk 0:00:15.5]}
25. Rac1 {[%clk 0:00:51.6]} 25... Nxd5 {[%clk 0:00:11.8]} 26. bxc5 {[%clk
0:00:51.5]} 26... Bxc5 {[%clk 0:00:11.6]} 27. Ne4 {[%clk 0:00:50.8]} 27... Bxe4
{[%clk 0:00:08.9]} 28. Qxe4 {[%clk 0:00:50]} 28... Qc6 {[%clk 0:00:07.9]} 29.
Qxe5 {[%clk 0:00:48]} 29... Re8 {[%clk 0:00:07.7]} 30. Qg3 {[%clk 0:00:46]}
30... Re2 {[%clk 0:00:06.8]} 31. d4 {[%clk 0:00:42]} 31... Rxd2 {[%clk
0:00:02.9]} 32. dxc5 {[%clk 0:00:42.4]} 1-0

[Event "Late-Titled-Tuesday-Blitz-June-04-2024"]
[Site "Chess.com"]
[Date "2024.06.04"]
[Round "6"]
[White "dretch"]
[Black "Faqade"]
[Result "1-0"]
[WhiteElo "2870"]
[BlackElo "2601"]
[TimeControl "180+1"]
[EndTime "15:05:06 PDT"]
[Termination "dretch won by resignation"]

1. d4 {[%clk 0:02:55.8]} 1... d5 {[%clk 0:02:58.7]} 2. c4 {[%clk 0:02:55.9]}
2... c6 {[%clk 0:02:58.4]} 3. Nc3 {[%clk 0:02:55.7]} 3... Nf6 {[%clk 0:02:57.8]}
4. e3 {[%clk 0:02:55.8]} 4... e6 {[%clk 0:02:55.5]} 5. Bd3 {[%clk 0:02:55.4]}
5... Nbd7 {[%clk 0:02:54.7]} 6. cxd5 {[%clk 0:02:53.2]} 6... exd5 {[%clk
0:02:53.8]} 7. Nge2 {[%clk 0:02:51.9]} 7... Bd6 {[%clk 0:02:52.2]} 8. f3 {[%clk
0:02:52.1]} 8... O-O {[%clk 0:02:51.8]} 9. O-O {[%clk 0:02:51.5]} 9... c5 {[%clk
0:02:51.4]} 10. Nf4 {[%clk 0:02:51.3]} 10... Nb6 {[%clk 0:02:39.5]} 11. Nb5
{[%clk 0:02:51]} 11... Be7 {[%clk 0:02:36.5]} 12. dxc5 {[%clk 0:02:44.8]} 12...
Bxc5 {[%clk 0:02:37.4]} 13. b3 {[%clk 0:02:45.2]} 13... Bd7 {[%clk 0:02:34.9]}
14. Nd4 {[%clk 0:02:42.8]} 14... Re8 {[%clk 0:02:34.4]} 15. Qd2 {[%clk 0:02:39]}
15... Rc8 {[%clk 0:02:32.2]} 16. Bb2 {[%clk 0:02:38]} 16... Qe7 {[%clk
0:02:30.3]} 17. Kf2 {[%clk 0:02:17.6]} 17... g5 {[%clk 0:01:50.3]} 18. Nh3
{[%clk 0:02:12.9]} 18... h6 {[%clk 0:01:44.3]} 19. a3 {[%clk 0:02:00.7]} 19...
a5 {[%clk 0:01:43.3]} 20. Rfe1 {[%clk 0:01:56.3]} 20... a4 {[%clk 0:01:35.4]}
21. b4 {[%clk 0:01:14.2]} 21... Bd6 {[%clk 0:01:34.7]} 22. Kg1 {[%clk
0:01:12.4]} 22... Nc4 {[%clk 0:01:34.6]} 23. Bxc4 {[%clk 0:01:12.3]} 23... Rxc4
{[%clk 0:01:35.5]} 24. Nf2 {[%clk 0:01:10.6]} 24... Qe5 {[%clk 0:01:23.6]} 25.
g3 {[%clk 0:00:56.4]} 25... Qe7 {[%clk 0:01:23.3]} 26. e4 {[%clk 0:00:53.4]}
26... dxe4 {[%clk 0:01:12.6]} 27. Nxe4 {[%clk 0:00:53.6]} 27... Nxe4 {[%clk
0:01:12.2]} 28. Rxe4 {[%clk 0:00:53.5]} 28... Qf8 {[%clk 0:01:11.9]} 29. Nf5
{[%clk 0:00:47]} 29... Rcxe4 {[%clk 0:00:51.7]} 30. Nxd6 {[%clk 0:00:46.3]}
30... Re2 {[%clk 0:00:48.7]} 31. Qd4 {[%clk 0:00:46.2]} 31... R8e5 {[%clk
0:00:35.1]} 32. Ne4 {[%clk 0:00:39.5]} 32... f6 {[%clk 0:00:15.5]} 33. Qc4+
{[%clk 0:00:39.7]} 1-0